Cogmind - Beta 14 *** ADVENTURER MODE // 2025.03.28 @ 15:05:20 Player: h0rm1g4 Result: Self-destructed Performance ------------- Evolutions (3) 1500 Regions Visited (5) 1000 Robots Destroyed (78) 390 Value Destroyed (2574) 2574 Prototype IDs (1) 20 Alien Tech Used (0) 0 Bonus (288) 288 TOTAL SCORE: 5772 Bonus ------- High Alert Combat Kills 288 Cogmind --------- Core Integrity 310/700 Matter 262/300 Energy 265/265 System Corruption 0% Temperature Cool (0) Movement Treading (160) Location -7/Factory Parts ------- > --- POWER (2) -------- Improved Ion Engine > --- PROPULSION (3) --- Light Treads > --- UTILITY (6) ------ Medium Storage Unit Targeting Computer ECM Suite > --- WEAPON (2) ------- (None) > --- INVENTORY (10) --- Visual Processing Unit Peak State ------------ > --- POWER ------------ Light Deuterium Engine Light Deuterium Engine > --- PROPULSION ------- Advanced Treads Advanced Treads Advanced Treads > --- UTILITY ---------- Medium Storage Unit Improved Sensor Array Targeting Computer ECM Suite Light Armor Plating Hacking Suite > --- WEAPON ----------- Improved Medium Laser Heavy Particle Cannon > --- INVENTORY -------- Improved Ion Engine Improved Ion Engine Light Treads Improved Hover Unit Improved Hover Unit Visual Processing Unit Concussive RPG Improved Datajack [Rating: 32] Favorites ----------- Power Light Deuterium Engine Engine Light Deuterium Engine Power Core Light Nuclear Core Propulsion Wheel Treads Advanced Treads Wheel Wheel Hover Unit Improved Hover Unit Utility Medium Storage Unit Device ECM Suite Storage Medium Storage Unit Processor Targeting Computer Hackware Hacking Suite Protection Hardened Light Armor Plating Weapon Improved Medium Laser Energy Gun Improved Medium Laser Energy Cannon Heavy Particle Cannon Ballistic Gun Assault Rifle Launcher Rocket Launcher Special Melee Weapon Improved Datajack Build | -11 -10 -9 -8 -8 -7 ------- Run | Yrd Mat Mat Mat Sto Fac Slots Evolved 6 | . . 2 2 . 2 Power 1 | . . . 1 . . Propulsion 1 | . . . 1 . . Utility 4 | . . 2 . . 2 Weapon . | . . . . . . Parts Attached 49 | 6 2 10 10 11 10 Power 9 | 1 . 2 2 2 2 Engine 7 | 1 . 1 1 2 2 Core 2 | . . 1 1 . . Reactor . | . . . . . . Propulsion 14 | 2 . 2 3 4 3 Treads 5 | . . . . 4 1 Leg . | . . . . . . Wheel 7 | 2 . 2 3 . . Hover 2 | . . . . . 2 Flight . | . . . . . . Utility 16 | 1 2 4 3 4 2 Device 6 | . . 2 1 2 1 Storage 4 | 1 1 . 1 1 . Processor 2 | . 1 1 . . . Hackware 1 | . . . . . 1 Protection 3 | . . 1 1 1 . Artifact . | . . . . . . Weapon 10 | 2 . 2 2 1 3 Energy Gun 2 | 1 . . 1 . . Energy Cannon 1 | . . . . 1 . Ballistic Gun 3 | 1 . 1 . . 1 Ballistic Cannon . | . . . . . . Launcher 3 | . . 1 1 . 1 Special Weapon . | . . . . . . Impact Weapon . | . . . . . . Slashing Weapon . | . . . . . . Piercing Weapon . | . . . . . . Special Melee Weapon 1 | . . . . . 1 Unidentified Prototypes 1 | . . . 1 . . Parts Lost 27 | . 1 1 6 4 15 Power 6 | . 1 . 1 1 3 Propulsion 11 | . . 1 2 3 5 Utility 5 | . . . 2 . 3 Weapon 5 | . . . 1 . 4 Highest Loss Streak 15 | . 1 1 5 3 15 To Critical Strikes . | . . . . . . Average Slot Usage (%) 88 | . 95 91 89 93 61 Engine 10 | . 11 3 14 12 9 Core 3 | . . 6 3 5 . Treads 5 | . . . . 11 12 Wheel 15 | . 28 18 20 10 . Device 6 | . . 4 6 8 10 Storage 9 | . 14 11 9 9 7 Processor 10 | . 12 15 9 9 7 Protection 6 | . . 11 8 8 2 Energy Gun 9 | . 14 11 9 9 2 Energy Cannon 1 | . . . . 3 2 Ballistic Gun 4 | . 14 8 . . . Launcher 3 | . . 2 9 5 . Peak Build Rating 32 | 6 9 14 21 29 32 Average Rating 16 | 3 7 12 16 22 16 On Entrance 12 | . 6 8 12 21 29 Naked Turns . | . . . . . . Heaviest Build 35 | 12 17 27 35 34 35 Greatest Support 66 | 20 20 32 48 66 66 Greatest Overweight (x) 6 | 1 . 2 1 1 6 Average Overweight (x) . | . . . . . . Largest Inventory Capacity 10 | 8 10 10 10 10 10 Average Capacity 9 | 7 9 10 10 10 10 Most Carried 10 | 5 7 9 10 10 9 Average Carried 6 | 3 5 6 6 8 4 Final Capacity 10 | 8 10 10 10 10 10 Final Carried 10 | 3 7 9 9 10 1 Class Distribution -------------------- 94% | Mutant 5% | Hacker-Mutant Dominant Class ---------------- Mutant | -10/Materials Mutant | -9/Materials Mutant | -8/Materials Mutant | -8/Storage Mutant | -7/Factory Resources | -11 -10 -9 -8 -8 -7 ----------- Run | Yrd Mat Mat Mat Sto Fac Matter Collected 1377 | 260 90 314 222 451 40 Remotely . | . . . . . . Salvage Created 2247 | . 248 683 508 768 40 Parts 148 | . 16 44 33 52 3 Haulers Intercepted 3 | . . 1 1 1 . Recyclers Shooed 2 | . . 2 . . . Parts Field Recycled . | . . . . . . Retrieved Matter . | . . . . . . Parts Self-Destructed . | . . . . . . Prevented . | . . . . . . Kills | -11 -10 -9 -8 -8 -7 ------- Run | Yrd Mat Mat Mat Sto Fac Combat Hostiles Destroyed 61 | . 7 22 14 17 1 Guns 33 | . 7 13 4 8 1 Cannons 3 | . . . . 3 . AOE 25 | . . 9 10 6 . Classes Destroyed 11 | . 3 4 2 1 1 Worker 1 | . . 1 . . . Builder 1 | . . . . 1 . Tunneler 1 | . . . 1 . . Hauler 3 | . . 1 1 1 . Operator 5 | . . 1 2 2 . Watcher 6 | . 2 1 1 2 . Swarmer 12 | . 3 7 2 . . Grunt 33 | . 4 13 8 8 . Duelist 3 | . . . 1 2 . Sentry 12 | . . 2 3 7 . Hunter 1 | . . . . . 1 Best Kill Streak 7 | . 3 4 7 6 1 Combat Bots Only 7 | . 3 4 7 6 1 Max Kills in Single Turn 4 | . 1 3 2 4 1 Gunslinging . | . . . . . . Exploded 4 | . . 3 2 4 . Melee . | . . . . . . Uniques/NPCs Destroyed . | . . . . . . Combat | -11 -10 -9 -8 -8 -7 -------- Run | Yrd Mat Mat Mat Sto Fac Hostile Shots Fired 726 | . 40 86 47 86 467 Missed 286 | . 17 39 14 30 186 Damage Taken 3682 | . 213 414 626 803 1626 Core 929 | . 28 107 225 179 390 Absorbed by Shields . | . . . . . . Ignored by Resistances 1145 | . 66 129 174 223 553 Core Remaining (%) 71 | 100 88 73 . 26 . Volleys Fired 163 | . 25 49 27 50 12 Largest 2 | . 2 2 2 2 2 Hottest 131 | . 70 83 89 131 131 Shots Fired 299 | . 50 98 49 84 18 Gun 224 | . 50 89 27 50 8 Cannon 21 | . . . . 12 9 Launcher 54 | . . 9 22 22 1 Special . | . . . . . . Kinetic 68 | . 25 40 . . 3 Thermal 177 | . 25 49 27 62 14 Explosive 54 | . . 9 22 22 1 Electromagnetic . | . . . . . . Robot Hit Streak 29 | . 8 29 18 27 9 Robot Miss Streak 3 | . 3 2 2 1 1 Penetration Max . | . . . . . . Secondary Targets 4 | . 2 2 . . . Max Gunslinging Chain 1 | . 1 1 . . . Shots Hit Robots 239 | . 35 78 38 72 16 Core Hits 141 | . 15 45 34 42 5 Critical Kills . | . . . . . . Critical Parts Destroyed . | . . . . . . Critical Strikes 10 | . . 4 1 5 . Burn 10 | . . 4 1 5 . Melee Attacks 1 | . . . . . 1 Impact . | . . . . . . Slashing . | . . . . . . Piercing . | . . . . . . Sneak Attacks . | . . . . . . Combat Hostiles . | . . . . . . Follow-up Attacks . | . . . . . . Damage Inflicted 6341 | . 461 1762 1772 2038 308 Guns 2591 | . 461 902 329 796 103 Cannons 460 | . . . . 260 200 Explosions 3290 | . . 860 1443 982 5 Melee . | . . . . . . Ramming . | . . . . . . Kinetic 596 | . 213 348 . . 35 Thermal 2455 | . 248 554 329 1056 268 Explosive 3290 | . . 860 1443 982 5 Electromagnetic . | . . . . . . Impact . | . . . . . . Slashing . | . . . . . . Piercing . | . . . . . . Highest Corruption . | . . . . . . Average Corruption . | . . . . . . Corruption Purged . | . . . . . . Corruption Blocked . | . . . . . . Overload Shots . | . . . . . . Overflow Damage 137 | . . 53 55 29 . Projectiles . | . . . . . . Explosions 137 | . . 53 55 29 . Melee . | . . . . . . Knockbacks . | . . . . . . Impact . | . . . . . . Kinetic . | . . . . . . Secondary . | . . . . . . Self-Inflicted Damage 99 | . . 6 93 . . Shots 5 | . . 1 4 . . Rammed . | . . . . . . Targets Rammed . | . . . . . . Kicked . | . . . . . . Crushed . | . . . . . . Highest Temperature 479 | . 100 324 303 479 352 Average Temperature 120 | . 40 92 94 153 219 Received Heat Transfer 1662 | . 192 294 189 387 600 Effects 14 | . . 1 1 8 4 Shutdowns 4 | . . . . 4 . Energy Bleed 3 | . . . 1 . 2 Interference 2 | . . . . 2 . Matter Decay 2 | . . . . 1 1 Short Circuit 1 | . . 1 . . . Damage (minor) 2 | . . . . 1 1 Siege Activations . | . . . . . . Robots Corrupted . | . . . . . . Combat Hostiles . | . . . . . . Parts Fried . | . . . . . . Impact Corruptions . | . . . . . . Robots Melted . | . . . . . . Combat Hostiles . | . . . . . . Parts Melted 10 | . . 5 1 2 2 Heat Transferred 6401 | . 740 1924 851 2442 444 Parts Sabotaged . | . . . . . . Parts Stolen . | . . . . . . Parts Stripped . | . . . . . . Power Chain Reactions . | . . . . . . Alert | -11 -10 -9 -8 -8 -7 ------- Run | Yrd Mat Mat Mat Sto Fac Peak Influence 743 | . 220 568 743 692 311 Initial 221 | . . 7 204 195 221 Average 334 | . 71 235 514 505 205 Maximum Alert Level 3 | . 1 2 3 2 1 Low Security (%) 32 | 100 90 47 . . 52 Level 1 23 | . 9 30 19 20 47 Level 2 41 | . . 21 72 79 . Level 3 1 | . . . 7 . . Level 4 . | . . . . . . Level 5 . | . . . . . . High Security . | . . . . . . Max Security . | . . . . . . Squads Dispatched 5 | . . 2 2 1 . Investigation . | . . . . . . Extermination . | . . . . . . Reinforcement 5 | . . 2 2 1 . Assault . | . . . . . . Garrison . | . . . . . . Intercept . | . . . . . . Searches Triggered . | . . . . . . Construction Impeded 1 | . . 1 . . . Haulers Reinforced . | . . . . . . Active Scanning Responses . | . . . . . . Cargo Convoy Interrupts . | . . . . . . Stealth | -11 -10 -9 -8 -8 -7 --------- Run | Yrd Mat Mat Mat Sto Fac Distress Signals 9 | . 2 5 . 1 1 Communications Jammed . | . . . . . . Distress Signals . | . . . . . . Times Spotted 91 | . 10 32 21 21 7 Peak Tracking Total 8 | . 5 7 8 6 6 Tactical Retreats 6 | . . 3 . 2 1 Traps | -11 -10 -9 -8 -8 -7 ------- Run | Yrd Mat Mat Mat Sto Fac Traps Triggered 1 | . . . . 1 . Indirectly . | . . . . . . Trap Hack Attempts . | . . . . . . Triggered . | . . . . . . Disarmed . | . . . . . . Reprogrammed . | . . . . . . Reused . | . . . . . . Traps Extracted . | . . . . . . Installed . | . . . . . . Triggered . | . . . . . . Machines | -11 -10 -9 -8 -8 -7 ---------- Run | Yrd Mat Mat Mat Sto Fac Machines Disabled 10 | . . 1 3 6 . Max in Single Turn 1 | . . 1 1 1 . Machines Repaired . | . . . . . . Machines Dismantled . | . . . . . . Machines Sabotaged . | . . . . . . Overloaded Fab Kills . | . . . . . . Hacking | -11 -10 -9 -8 -8 -7 --------- Run | Yrd Mat Mat Mat Sto Fac Machines Accessed 9 | . 3 2 1 2 1 Terminals 8 | . 3 2 1 2 . Fabricators 1 | . . . . . 1 Repair Stations . | . . . . . . Recycling Units . | . . . . . . Scanalyzers . | . . . . . . Garrison Access . | . . . . . . Total Hacks 15 | . 5 5 2 2 1 Successful 11 | . 3 4 2 1 1 Failed 4 | . 2 1 . 1 . Catastrophic 1 | . 1 . . . . Database Lockouts . | . . . . . . Manual 3 | . 1 1 . 1 . Terminals 14 | . 5 5 2 2 . Fabricators 1 | . . . . . 1 Repair Stations . | . . . . . . Recycling Units . | . . . . . . Scanalyzers . | . . . . . . Garrison Access . | . . . . . . Terminal Hacks 10 | . 3 4 2 1 . Record 9 | . 3 4 2 . . Robot Analysis 1 | . . . . 1 . Fabricator Hacks 1 | . . . . . 1 Network Status 1 | . . . . . 1 Repair Station Hacks . | . . . . . . Recycling Unit Hacks . | . . . . . . Scanalyzer . | . . . . . . Garrison Access Hacks . | . . . . . . Unauthorized Hacks . | . . . . . . Terminals . | . . . . . . Fabricators . | . . . . . . Repair Stations . | . . . . . . Recycling Units . | . . . . . . Scanalyzers . | . . . . . . Garrison Access . | . . . . . . Data Cores Recovered 3 | . . 1 . 2 . Used . | . . . . . . Hacking Detections 4 | . . 2 1 . 1 Full Trace Events . | . . . . . . Feedback Events . | . . . . . . Feedback Blocked . | . . . . . . Robot Schematics Acquired . | . . . . . . Robots Built . | . . . . . . Authchips . | . . . . . . Time . | . . . . . . Total Robot Build Rating . | . . . . . . Part Schematics Acquired . | . . . . . . Parts Built . | . . . . . . Authchips . | . . . . . . Time . | . . . . . . Total Part Build Rating . | . . . . . . Parts Repaired . | . . . . . . Time . | . . . . . . Parts Recycled . | . . . . . . Recycled Matter . | . . . . . . Retrieved Matter . | . . . . . . Retrieved Components . | . . . . . . Parts Scanalyzed . | . . . . . . Part Schematics Acquired . | . . . . . . Parts Damaged . | . . . . . . Bothacking | -11 -10 -9 -8 -8 -7 ------------ Run | Yrd Mat Mat Mat Sto Fac Used RIF Installer . | . . . . . . Robots Hacked 1 | . . . . . 1 Non-combat . | . . . . . . Combat 1 | . . . . . 1 Robot Hacks Applied 1 | . . . . . 1 parse_system 1 | . . . . . 1 Relay Couplers Released . | . . . . . . Fabnet Peak Effective % . | . . . . . . Robots Rewired . | . . . . . . Allies Hacked . | . . . . . . Hacks Repelled . | . . . . . . Allies | -11 -10 -9 -8 -8 -7 -------- Run | Yrd Mat Mat Mat Sto Fac Total Allies . | . . . . . . Largest Group . | . . . . . . Highest-Rated Group . | . . . . . . Highest-Rated Ally . | . . . . . . Total Orders . | . . . . . . Ally Attacks . | . . . . . . Total Damage . | . . . . . . Kills . | . . . . . . Allies Corrupted . | . . . . . . Allies Melted . | . . . . . . Intel | -11 -10 -9 -8 -8 -7 ------- Run | Yrd Mat Mat Mat Sto Fac Robot Analysis Total 1 | . . . . 1 . Derelict Logs Recovered . | . . . . . . Drone Launches . | . . . . . . Drone Recoveries . | . . . . . . Exploration | -11 -10 -9 -8 -8 -7 ------------- Run | Yrd Mat Mat Mat Sto Fac Turns Passed 2722 | 46 442 538 460 876 360 Spaces Moved 1886 | 41 419 342 324 562 198 Core 29 | 10 . . . . 19 Treads 383 | . . . . 213 170 Legs . | . . . . . . Wheels 1465 | 31 419 342 324 349 . Hover 9 | . . . . . 9 Flight . | . . . . . . Fastest Speed 50 | 50 80 80 93 93 116 Average Speed 107 | 76 80 95 105 120 157 Slowest Speed 350 | 100 80 110 115 150 350 Overloaded Moves . | . . . . . . Propulsion Burnouts . | . . . . . . Robots Hopped . | . . . . . . Cave-ins Triggered . | . . . . . . Exploration Rate (%) 37 | 3 57 29 41 88 6 Regions Visited 5 Branch Regions 1 Pre-discovered Areas . | . . . . . . Known Exits Taken . | . . . . . . Unknown Exits Taken 5 | 1 1 1 1 1 . Scrap Searched . | . . . . . . Spaces Dug . | . . . . . . Terrain Destroyed 363 | . . 55 150 155 3 Melee . | . . . . . . Projectile 2 | . . . . 2 . AOE 361 | . . 55 150 153 3 Terrain Rammed . | . . . . . . Walls Destroyed . | . . . . . . Machines Disabled . | . . . . . . Actions | -11 -10 -9 -8 -8 -7 --------- Run | Yrd Mat Mat Mat Sto Fac Total 2284 | 55 476 455 394 676 228 Wait 119 | . 23 37 17 36 6 Move 1881 | 40 418 341 323 561 198 Hop . | . . . . . . Pick Up 52 | 9 6 12 12 12 1 Fast Attach . | . . . . . . Attach 38 | 6 2 5 9 6 10 Detach 2 | . 1 . 1 . . Swap 11 | . . 5 1 5 . Drop 17 | . 1 6 4 6 . Fire 163 | . 25 49 27 50 12 Melee 1 | . . . . . 1 Ram . | . . . . . . Kick . | . . . . . . Crush . | . . . . . . Escape Stasis . | . . . . . . Rewire . | . . . . . . Trap . | . . . . . . Miscellaneous . | . . . . . . Route ------- -11/Scrapyard -10/Materials -9/Materials -8/Materials -8/Storage -7/Factory History --------- Turn | Location | Event 5 | -11/Scrapyard | Discovered new exit (range 16) 47 | -11/Scrapyard | Entered Materials 162 | -10/Materials | Discovered new exit (range 13) 307 | -10/Materials | Build established: Mutant 489 | -10/Materials | Entered another Materials area 489 | -9/Materials | Evolved 2 slots: Utility x2 977 | -9/Materials | Discovered new exit (range 13) 1027 | -9/Materials | Entered another Materials area 1027 | -8/Materials | Evolved 2 slots: Power x1, Propulsion x1 1279 | -8/Materials | Discovered new exit (range 4) 1332 | -8/Materials | Destroyed 7 combat bots 1332 | -8/Materials | Lost 5 parts (1p1n2u1w) 1487 | -8/Materials | Entered Storage 1523 | -8/Storage | Core integrity fell below 50% 2012 | -8/Storage | Lost 3 parts (1p2n) 2288 | -8/Storage | Discovered new exit (range 16) 2363 | -8/Storage | Entered Factory 2363 | -7/Factory | Evolved 2 slots: Utility x2 2594 | -7/Factory | Lost 15 parts (3p5n3u4w) 2705 | -7/Factory | Core integrity fell below 50% 2723 | -7/Factory | Self-destructed Last Messages --------------- 02527_ Lgt. Deuterium Engine destroyed. 02528_ U-05 Engineer lays Concrete. 02529_ R-06 Scavenger collects Com. Wheel. 02530_ U-05 Engineer lays Concrete. 02531_ Adv. Treads destroyed. 02531_ U-05 Engineer lays Concrete. 02532_ Hacking Suite destroyed. 02532_ U-05 Engineer lays Concrete. 02533_ R-06 Scavenger collects Carbon-fiber Leg. 02533_ U-05 Engineer lays Concrete. 02535_ Assault Rifle destroyed. 02555_ Imp. Hover Unit destroyed. 02563_ Imp. Ion Engine destroyed. 02665_ W-25 Informer distress signal alerts nearby ally. 02709_ Penetrated by Slug. 02709_ K-01 Serf destroyed. 02712_ K-01 Serf collects debris. 02716_ R-06 Scavenger collects Wheel. 02722_ K-01 Serf collects debris. Map ----- +----------------------------------------------------+ | ?????????????????????????????????????????????????? | | ?????????????????????????????????????????????????? | | ?????????????????????????????????????????????????? | | ?????????????????????????????????????????????????? | | ?????????????????????????????????????????????????? | | ?????????????????????????????????????????????????? | | ?????????????????????????????????????????????????? | | ?????????????????????????????????????????????????? | | ?????????????????????????????????????????????????? | | ?? ??????????????????????????????????????????????? | | ??"??????????????????????????????????????????????? | | ? ?????????????????????????????????????????????? | | ?"" ??????????????????????##?????????????????????? | | ??" ?????????????######### ####??????????????????? | | ?? ?????????????# ???????????????????? | | ?? ?????????????# T #??????????????????? | | ??#/?????????????# ! #??????????????????? | | ??# ?????????????# !!! #??????????????????? | | ### ##???????????# !!! # ????????????????? | | #############^ !!! + ????????????????? | | + h %kr #??????????????????? | | ############# Y""""""" #??????????????????? | | ## #???????????# """"""" #??????????????????? | | ?# #???????????# """"""" #??????????????????? | | ?# ###########?# """"""" #??????????????????? | | ?# # ??# @ #??????????????????? | | ?# # ??##############??????????????????? | | ?# # ???????????????????????????????????? | | ?# # """"""????????????????????????????????????? | | ?# + """"""????????????????????????????????????? | | ?# # """"""????????????????????????????????????? | | ?# # """""?????????????????????????????????????? | | ## # ?????????????????????????????????????? | | # ########????????????????????????????????????? | | + #???????????????????????????????????????????? | | # #???????????????????????????????????????????? | | # #???????????????????????????????????????????? | | ?# #???????????????????????????????????????????? | | ?# #???????????????????????????????????????????? | | ?# #???????????????????????????????????????????? | | ?# #???????????????????????????????????????????? | | ?# #???????????????????????????????????????????? | | ?# #???????????????????????????????????????????? | | ?# #???????????????????????????????????????????? | | ?# #???????????????????????????????????????????? | | ?# #???????????????????????????????????????????? | | ?# #???????????????????????????????????????????? | | # #???????????????????????????????????????????? | | # #???????????????????????????????????????????? | | + #???????????????????????????????????????????? | +----------------------------------------------------+ Best States ------------- Heat Dissipation 41 Energy Generation 23 Energy Capacity 415 Matter Stores 300 Matter Capacity 300 Sight Range 18 Robot Scan Range 15 Terrain Scan Density 10 ECM Strength 1 Armor Coverage 150 Resistance: KI 20 Resistance: TH 20 Resistance: EX 20 Resistance: EM 20 Resistance: I 20 Resistance: S 20 Resistance: P 20 Evasion (%) 50 Targeting Accuracy 5 Recoil Reduction 3 Offensive Hacking 20 Item Schematics ----------------- None Robot Schematics ------------------ None Fabricated ------------ Nothing Alien Tech Used ----------------- None Achievements -------------- None Challenges ------------ None Game ------ Seed HoverCatalystKit Manual? 0 Play Time 00:49:07 Cumulative 36.5 hours Start 2025.03.28 @ 12:24:52 End 2025.03.28 @ 15:05:20 Sessions 3 Manual Loads 0 Difficulty Adventurer Special Mode None Game No. 31 Rogue 7 Adventurer 24 Explorer 0 Win Type - Total 0 Types 0/0/0/0/0/0/0/0/0 Lore% 7 Gallery% 27 Achievement% 19 Wizard Run 0 Options --------- Layout 1 ASCII 0 Keyboard 0 Movement Mouse Keybinds 0 Fullscreen 1 Font 24/Smallcaps Map View 50x35 Zoom Use 0% Tactical HUD 1 Map Filters NONE Filters NONE Steam 1 RUN: d6dbf350-67b1-4fb9-9167-b4cb69b8457d